bitfinex-derivatives/quotes_BTCF0:USTF0_20241013
["timestamp","ask_amount","ask_price","bid_price","bid_amount"]
[1728859265735,0.084518,62894.0,62893.0,0.080518]
[1728859266231,0.005,62894.0,62893.0,0.080518]
[1728859266834,0.005,62894.0,62893.0,0.081518]
[1728859268035,0.084518,62894.0,62893.0,0.081518]
[1728859269128,0.005,62894.0,62893.0,0.081518]
[1728859270939,0.14299566,62913.0,62900.0,0.079511]
[1728859270940,0.14063037,62905.0,62900.0,0.079511]
[1728859271140,0.11107476,62903.0,62902.0,0.079508]
[1728859271337,0.11107476,62903.0,62902.0,0.239508]
[1728859271338,0.03859397,62903.0,62902.0,0.239508]
[1728859272832,0.03859397,62903.0,62902.0,0.240508]
[1728859273236,0.08188926,62905.0,62904.0,0.079506]
[1728859273438,0.00238526,62905.0,62904.0,0.079506]
[1728859274332,0.00238526,62905.0,62904.0,0.080506]
[1728859274735,0.00238526,62905.0,62904.0,0.10986001]
[1728859275137,0.00238526,62905.0,62904.0,0.11086001]
[1728859280343,0.04129896,62905.0,62904.0,0.11086001]
[1728859283047,0.0412215,62905.0,62904.0,0.11086001]
[1728859284454,0.15229626,62905.0,62904.0,0.11086001]
[1728859285135,0.15229626,62905.0,62904.0,0.47166001]
[1728859286660,0.0412215,62905.0,62904.0,0.47166001]
[1728859288348,0.00238526,62905.0,62904.0,0.47166001]
[1728859291145,0.00238526,62905.0,62904.0,0.11086001]
[1728859291341,0.00238526,62905.0,62904.0,0.47166001]
[1728859293846,0.00238526,62905.0,62904.0,0.58166001]
[1728859298859,0.079501,62908.0,62907.0,0.079502]
[1728859300046,0.079501,62908.0,62907.0,0.080502]
[1728859300756,0.079501,62908.0,62907.0,0.190502]
[1728859300954,0.079501,62908.0,62907.0,0.191502]
[1728859301141,0.11107476,62914.0,62907.0,0.112]
[1728859301346,0.143896,62912.0,62911.0,0.189497]
[1728859301757,0.0644,62912.0,62911.0,0.189497]
[1728859302256,0.11477476,62919.0,62917.0,0.079488]
[1728859302257,0.079488,62918.0,62917.0,0.079488]
[1728859302449,0.079489,62919.0,62918.0,0.079487]
[1728859302646,0.079489,62919.0,62918.0,0.189487]
[1728859303351,0.16425812,62919.0,62918.0,0.189487]
[1728859303752,0.16419969,62919.0,62918.0,0.190487]
[1728859304955,0.16419969,62919.0,62918.0,0.191487]
[1728859305570,0.16419969,62919.0,62918.0,0.002]
[1728859305859,0.31663411,62919.0,62918.0,0.002]
[1728859306066,0.4013448,62919.0,62918.0,0.002]
[1728859306558,0.27419969,62919.0,62918.0,0.002]
[1728859306857,0.079488,62918.0,62917.0,0.04232186]
[1728859307062,0.21599182,62918.0,62917.0,0.07030245]
[1728859307462,0.35885279,62918.0,62917.0,0.07030245]
[1728859307661,0.16419869,62918.0,62917.0,0.07030245]
[1728859307858,0.16419869,62918.0,62917.0,0.07130245]
[1728859308159,0.16419869,62918.0,62917.0,0.02898059]
[1728859308360,0.1634114,62918.0,62917.0,0.02898059]
[1728859308565,0.1183226,62918.0,62917.0,0.02998059]
[1728859308864,0.22942978,62918.0,62917.0,0.02998059]
[1728859310169,0.1183226,62918.0,62917.0,0.02998059]
[1728859310466,0.079488,62918.0,62917.0,0.02998059]
[1728859311866,0.079488,62918.0,62917.0,0.002]
[1728859318358,0.16342823,62918.0,62917.0,0.002]
[1728859320372,0.29041567,62918.0,62917.0,0.002]
[1728859320764,0.34174865,62918.0,62917.0,0.002]
[1728859320967,0.21476121,62918.0,62917.0,0.002]
[1728859321774,0.079495,62912.0,62911.0,0.0037]
[1728859322069,0.079504,62905.0,62904.0,0.079505]
[1728859322267,0.22834639,62905.0,62904.0,0.079505]
[1728859322460,0.22834639,62905.0,62903.0,0.3608]
[1728859322664,0.11834839,62904.0,62903.0,0.3608]
[1728859323668,0.11834839,62904.0,62903.0,0.441307]
[1728859323865,0.11934839,62904.0,62903.0,0.442307]
[1728859324076,0.11934839,62904.0,62903.0,0.47042553]
[1728859325272,0.080506,62904.0,62903.0,0.47042553]
[1728859329077,0.190506,62904.0,62903.0,0.47042553]
[1728859332881,0.190506,62904.0,62903.0,0.002]
[1728859334981,1.65872,62904.0,62892.0,0.04759144]
[1728859335180,1.65872,62904.0,62886.0,0.44037848]
[1728859335181,0.189519,62893.0,62888.0,0.04759144]
[1728859335378,0.11,62889.0,62888.0,0.02819573]
[1728859335580,0.11,62889.0,62886.0,0.51861944]
[1728859335581,0.079527,62887.0,62886.0,0.472268]
[1728859335985,0.079527,62887.0,62886.0,0.49928675]
[1728859336181,0.079527,62887.0,62886.0,0.05895875]
[1728859336376,0.079527,62887.0,62882.0,0.04759144]
[1728859336576,0.079527,62887.0,62879.0,0.3929]
[1728859336577,0.11,62884.0,62880.0,0.12712644]
[1728859336777,0.11,62884.0,62879.0,0.44049144]
[1728859337081,0.079534,62882.0,62881.0,0.079534]
[1728859338282,0.079534,62882.0,62881.0,0.081534]
[1728859339188,0.079529,62886.0,62885.0,0.07953]
[1728859340499,0.082529,62886.0,62885.0,0.07953]
[1728859341494,0.079533,62883.0,62879.0,0.55949703]
[1728859341789,0.079533,62883.0,62882.0,0.079533]
[1728859343290,0.079536,62880.0,62879.0,0.56073703]
[1728859343491,0.079536,62880.0,62879.0,0.63903403]
[1728859343694,0.079536,62880.0,62879.0,0.02869703]
[1728859343901,0.079546,62873.0,62872.0,0.079546]
[1728859344197,0.079546,62873.0,62869.0,0.3608]
[1728859344198,0.079549,62871.0,62870.0,0.079549]
[1728859346905,0.079549,62871.0,62870.0,0.080549]
[1728859347302,0.079549,62871.0,62870.0,0.083549]
[1728859347696,0.079549,62871.0,62870.0,0.004]
[1728859348702,0.079549,62871.0,62870.0,0.083549]
[1728859348906,0.3608,62879.0,62870.0,0.004]
[1728859349209,0.0111,62885.0,62878.0,0.249538]
[1728859349408,0.06468579,62886.0,62879.0,0.079537]
[1728859349796,0.079536,62880.0,62879.0,0.079537]
[1728859350614,0.07954,62878.0,62876.0,0.07954]
[1728859350912,0.07954,62878.0,62877.0,0.07954]
[1728859352099,0.08354,62878.0,62877.0,0.07954]
[1728859353111,0.09054,62878.0,62877.0,0.08054]
[1728859354010,0.09054,62878.0,62877.0,0.10968909]
[1728859354911,0.09054,62878.0,62877.0,0.03014909]
[1728859355117,0.09054,62878.0,62877.0,0.001]
[1728859355811,0.56766,62878.0,62865.0,0.0037]
[1728859356021,0.56766,62878.0,62863.0,0.3608]
[1728859356022,0.079551,62868.0,62867.0,0.0037]
[1728859356202,0.079551,62868.0,62863.0,0.440357]
[1728859356203,0.079556,62865.0,62863.0,0.440357]
[1728859356407,0.079556,62865.0,62864.0,0.079556]
[1728859356614,0.1737,62871.0,62863.0,0.56006372]
[1728859356817,0.079551,62868.0,62867.0,0.079551]
[1728859357208,0.079551,62868.0,62867.0,0.083551]
[1728859357612,0.079551,62868.0,62867.0,0.079551]
[1728859359608,0.079551,62868.0,62867.0,0.085551]
[1728859360006,0.079551,62868.0,62867.0,0.089551]
[1728859361908,0.249551,62868.0,62867.0,0.01]
[1728859365114,0.079551,62868.0,62867.0,0.089552]
[1728859365307,0.079551,62868.0,62867.0,0.15313771]
[1728859365711,0.079551,62868.0,62867.0,0.15303051]
[1728859367219,0.079551,62868.0,62867.0,0.089552]
[1728859367616,0.079551,62868.0,62867.0,0.15304358]
[1728859368213,0.079551,62868.0,62867.0,0.089552]
[1728859370422,0.079551,62868.0,62867.0,0.13719575]
[1728859371014,0.249551,62868.0,62867.0,0.05764375]
[1728859371221,0.249551,62868.0,62867.0,0.01]
[1728859371625,0.249551,62868.0,62867.0,0.05765628]
[1728859372226,0.249551,62868.0,62867.0,0.01]
[1728859379034,0.249551,62868.0,62867.0,0.08957848]
[1728859379822,0.189551,62868.0,62867.0,0.01]
[1728859380226,0.189551,62868.0,62867.0,0.08957848]
[1728859381334,0.189551,62868.0,62867.0,0.19555882]
[1728859381529,0.189551,62868.0,62867.0,0.08957848]
[1728859381929,0.189551,62868.0,62867.0,0.16913048]
[1728859382335,0.189551,62868.0,62867.0,0.27513298]
[1728859383326,0.189551,62868.0,62867.0,0.1955545]
[1728859385732,0.189551,62868.0,62867.0,0.1160025]
[1728859392252,0.189551,62868.0,62867.0,0.08959309]
[1728859392550,1.376751,62868.0,62867.0,0.06367908]
[1728859392749,1.376751,62868.0,62867.0,0.04776136]
[1728859392944,0.079552,62867.0,62866.0,0.04776268]
[1728859393248,0.079556,62864.0,62860.0,0.06737908]
[1728859393451,0.55036,62861.0,62860.0,0.06367908]
[1728859393661,0.079566,62856.0,62855.0,0.06367908]
[1728859393947,0.55036,62861.0,62854.0,0.0312]
[1728859393948,0.079568,62855.0,62854.0,0.110769]
[1728859395045,0.11,62857.0,62851.0,0.3608]
[1728859395243,0.299571,62852.0,62851.0,0.38910589]
[1728859395548,0.299571,62852.0,62851.0,0.3608]
[1728859395549,0.189571,62852.0,62851.0,0.3608]
[1728859395744,0.175571,62852.0,62851.0,0.3608]
[1728859396045,0.079574,62850.0,62849.0,0.14317699]
[1728859396246,0.073574,62850.0,62849.0,0.079575]
[1728859397052,0.067574,62850.0,62849.0,0.079575]
[1728859397347,0.067574,62850.0,62849.0,0.10773438]
[1728859397545,0.068574,62850.0,62849.0,0.11373438]
[1728859398049,0.068574,62850.0,62849.0,0.47453438]
[1728859398442,0.069574,62850.0,62849.0,0.47453438]
[1728859400651,0.069574,62850.0,62849.0,0.58015662]
[1728859401241,0.069574,62850.0,62849.0,0.65954363]
[1728859401652,0.069574,62850.0,62849.0,0.29874363]
[1728859401843,0.069574,62850.0,62849.0,0.65954363]
[1728859402651,0.069574,62850.0,62849.0,0.29874363]
[1728859402850,0.069574,62850.0,62849.0,0.65954363]
[1728859403553,0.069574,62850.0,62849.0,0.65949079]
[1728859403747,0.069574,62850.0,62849.0,0.58010378]
[1728859404944,0.002,62850.0,62849.0,0.80010378]
[1728859405143,0.0111,62861.0,62849.0,1.92346912]
[1728859405341,0.0111,62861.0,62858.0,0.440364]
[1728859405548,0.1728,62872.0,62858.0,0.46608291]
[1728859405549,0.08194189,62865.0,62858.0,0.46608291]
[1728859405751,0.00238689,62865.0,62864.0,0.189556]
[1728859407145,0.00238689,62865.0,62864.0,0.550356]
[1728859407748,0.00238689,62865.0,62864.0,0.440356]
[1728859407951,0.00238689,62865.0,62864.0,0.610356]
[1728859408154,0.00238689,62865.0,62864.0,0.63874796]
[1728859408664,0.00238689,62865.0,62864.0,0.49904796]
[1728859408854,0.00238689,62865.0,62864.0,0.50104796]
[1728859408855,0.00338689,62865.0,62864.0,0.50104796]
[1728859411258,0.00338689,62865.0,62864.0,0.50004796]
[1728859415161,0.00338689,62865.0,62864.0,0.13924796]
[1728859415365,0.00338689,62865.0,62864.0,0.50004796]
[1728859415551,0.00338689,62865.0,62864.0,0.56353842]
[1728859417954,0.00338689,62865.0,62864.0,0.53323842]
[1728859418558,0.25294189,62865.0,62864.0,0.46974796]
[1728859418760,0.250555,62865.0,62864.0,0.39019196]
[1728859421362,0.250555,62865.0,62864.0,0.02939196]
[1728859427854,0.190555,62865.0,62864.0,0.02939196]
[1728859430263,0.190555,62865.0,62864.0,0.09288242]
[1728859430659,0.190555,62865.0,62864.0,0.02939196]
[1728859434365,0.190555,62865.0,62864.0,0.09288242]
[1728859438566,0.190555,62865.0,62864.0,0.10875025]
[1728859439471,0.190555,62865.0,62864.0,0.21414759]
[1728859440363,0.190555,62865.0,62864.0,0.10875025]
[1728859441766,0.190555,62865.0,62864.0,0.21420762]
[1728859442267,0.190555,62865.0,62864.0,0.2142229]
[1728859442663,0.190555,62865.0,62864.0,0.10875025]
[1728859442863,0.190555,62865.0,62864.0,0.21423991]
[1728859443573,0.190555,62865.0,62864.0,0.21443413]
[1728859443875,0.190555,62865.0,62864.0,0.02939196]
[1728859447674,0.190555,62865.0,62864.0,0.001]
[1728859447675,0.300555,62865.0,62864.0,0.001]
[1728859447883,0.300555,62865.0,62857.0,0.0037]
[1728859447884,0.079564,62858.0,62857.0,0.06734772]
[1728859448076,0.079564,62858.0,62856.0,0.3608]
[1728859448077,0.079565,62857.0,62856.0,0.00124]
[1728859448281,0.07957,62853.0,62850.0,0.06734772]
[1728859448586,0.5808,62851.0,62847.0,0.06364772]
[1728859448790,0.189576,62848.0,62847.0,0.06364772]
[1728859449271,0.189576,62848.0,62846.0,0.02912898]
[1728859449272,0.079578,62847.0,62846.0,0.02912898]
[1728859449472,0.11,62848.0,62844.0,0.07958]
[1728859449473,0.07958,62845.0,62844.0,0.07958]
[1728859449677,0.079581,62844.0,62843.0,0.06364772]
[1728859449872,0.078581,62844.0,62843.0,0.06364772]
[1728859450073,0.078581,62844.0,62843.0,0.02842217]
[1728859450274,0.078581,62844.0,62843.0,0.079583]
[1728859452282,0.079581,62844.0,62843.0,0.079583]
[1728859452482,0.080581,62844.0,62843.0,0.079583]
[1728859453381,0.079584,62842.0,62841.0,0.06090402]
[1728859453696,0.11,62842.0,62841.0,0.16676588]
[1728859454383,0.111,62842.0,62841.0,0.16676588]
[1728859455089,0.190584,62842.0,62841.0,0.24635088]
[1728859455579,0.191584,62842.0,62841.0,0.24635088]
[1728859456280,0.191584,62842.0,62841.0,0.3256767]
[1728859457773,0.191584,62842.0,62841.0,0.32520057]
[1728859457989,0.191584,62842.0,62841.0,0.325172]
[1728859458381,0.191584,62842.0,62841.0,0.21981484]
[1728859458985,0.191584,62842.0,62841.0,0.14048902]
[1728859460385,0.191584,62842.0,62841.0,0.02900402]
[1728859460582,0.112,62842.0,62839.0,0.079588]
[1728859460790,0.079587,62840.0,62839.0,0.079588]
[1728859462583,0.080587,62840.0,62839.0,0.079588]
[1728859463088,0.080587,62840.0,62839.0,0.10896738]
[1728859463487,0.081587,62840.0,62839.0,0.10896738]
[1728859466291,0.081587,62840.0,62839.0,0.02937938]
[1728859466479,0.191587,62840.0,62835.0,0.440392]
[1728859466792,0.189592,62836.0,62835.0,0.440392]
[1728859468701,0.11,62836.0,62835.0,0.440392]
[1728859468883,0.191588,62840.0,62839.0,0.079588]
[1728859469282,0.189588,62840.0,62839.0,0.14303587]
[1728859470280,0.190588,62840.0,62839.0,0.14303587]
[1728859471688,0.079591,62837.0,62835.0,0.46894957]
[1728859471893,0.079591,62837.0,62836.0,0.079592]
[1728859473284,0.081591,62837.0,62836.0,0.079592]
[1728859473479,0.191591,62837.0,62836.0,0.079592]
[1728859475291,0.191591,62837.0,62836.0,0.264597]
[1728859475896,0.002,62837.0,62836.0,0.189592]
[1728859476079,0.07958,62846.0,62836.0,0.39049449]
[1728859476285,0.07958,62846.0,62844.0,0.079581]
[1728859476487,0.11,62847.0,62844.0,0.079581]
[1728859476693,0.07958,62845.0,62844.0,0.079581]
[1728859476988,0.18958,62845.0,62844.0,0.079581]
[1728859477186,0.19058,62845.0,62844.0,0.079581]
[1728859477386,0.19158,62845.0,62844.0,0.18525389]
[1728859479289,0.19158,62845.0,62844.0,0.18524872]
[1728859479490,0.19158,62845.0,62844.0,0.18624872]
[1728859480692,0.19158,62845.0,62844.0,0.001]
[1728859483902,0.22000592,62845.0,62844.0,0.001]
[1728859488095,0.19158,62845.0,62844.0,0.001]
[1728859489203,0.19158,62845.0,62844.0,0.080581]
[1728859489204,0.002,62845.0,62844.0,0.080581]
[1728859489398,0.002,62845.0,62844.0,0.111581]
[1728859489597,0.002,62845.0,62844.0,0.29673917]
[1728859490508,0.0008,62850.0,62844.0,1.40454508]
[1728859490801,0.0037,62852.0,62851.0,0.079573]
[1728859491002,0.11,62856.0,62855.0,0.079568]
[1728859491908,0.00238732,62858.0,62857.0,0.079565]
[1728859492201,0.079559,62862.0,62861.0,0.07956]
[1728859492598,0.079559,62862.0,62861.0,0.1431148]
[1728859492802,0.17,62866.0,62858.0,0.07952053]
[1728859493002,0.079554,62866.0,62862.0,0.06355175]
[1728859493201,0.079554,62866.0,62865.0,0.079555]
[1728859493805,0.249554,62866.0,62865.0,0.079555]
[1728859494009,0.079557,62863.0,62861.0,0.06355175]
[1728859494306,0.079557,62863.0,62861.0,0.07956]
[1728859494307,0.17,62862.0,62861.0,0.07956]
[1728859495009,0.001,62862.0,62861.0,0.61036]
[1728859495508,0.001,62862.0,62861.0,0.67382381]
[1728859495704,0.001,62862.0,62861.0,0.50382381]
[1728859496304,0.001,62862.0,62861.0,0.9176]
[1728859497007,0.001,62862.0,62861.0,0.44036]
[1728859497309,0.001,62862.0,62861.0,1.5810111]
[1728859497807,0.001,62862.0,62861.0,1.5176]
[1728859498202,0.0037,62869.0,62868.0,0.079551]
[1728859498406,0.3608,62874.0,62872.0,0.079546]
[1728859498597,0.3608,62874.0,62873.0,0.079545]
[1728859499001,0.00238656,62875.0,62874.0,0.079544]
[1728859499901,0.00238656,62875.0,62874.0,0.440344]
[1728859500415,0.19337898,62880.0,62874.0,0.5308]
[1728859500603,0.19337898,62880.0,62878.0,0.079537]
[1728859500604,0.079537,62879.0,62878.0,0.079537]
[1728859500806,0.35887898,62880.0,62874.0,0.3895074]
[1728859500807,0.17,62880.0,62875.0,0.079542]
[1728859501000,0.3608,62884.0,62875.0,0.079542]
[1728859501001,0.249541,62876.0,62875.0,0.079542]
[1728859502005,0.17,62876.0,62875.0,0.079542]
[1728859503106,0.184,62876.0,62875.0,0.079542]
[1728859503909,0.198,62876.0,62875.0,0.079542]
[1728859504912,0.028,62876.0,62875.0,0.079542]
[1728859506314,0.021,62876.0,62875.0,0.079542]
[1728859507108,0.021,62876.0,62874.0,0.3895074]
[1728859507109,0.079542,62875.0,62874.0,0.0287074]
[1728859507314,0.249542,62875.0,62874.0,0.079544]
[1728859508223,0.17,62875.0,62870.0,0.0322]
[1728859508411,0.079545,62873.0,62871.0,0.079546]
[1728859508611,0.079545,62873.0,62869.0,0.0306]
[1728859508612,0.079545,62873.0,62872.0,0.079546]
[1728859509308,0.079545,62873.0,62869.0,0.0306]
[1728859509309,0.176,62875.0,62869.0,0.02920815]
[1728859509510,0.249549,62870.0,62865.0,0.0037]
[1728859509706,0.079558,62863.0,62861.0,0.470859]
[1728859509918,0.249559,62862.0,62861.0,0.470859]
[1728859510110,0.249559,62862.0,62861.0,0.3913]
[1728859510509,0.249559,62862.0,62861.0,0.3608]
[1728859511117,0.250559,62862.0,62861.0,0.3638]
[1728859511521,0.250559,62862.0,62861.0,0.3668]
[1728859511522,0.251559,62862.0,62861.0,0.3668]
[1728859512108,0.080559,62862.0,62861.0,0.44336]
[1728859512423,0.002,62862.0,62861.0,0.44336]
[1728859512721,0.001,62862.0,62861.0,0.44036]
[1728859513518,0.002,62862.0,62861.0,0.44236]
[1728859513917,0.002,62862.0,62861.0,0.08156]
[1728859514213,0.001,62862.0,62861.0,0.07956]
[1728859519416,0.001,62862.0,62859.0,0.3608]
[1728859519417,0.171,62862.0,62859.0,0.3608]
[1728859519631,0.079561,62860.0,62859.0,0.3608]
[1728859520631,0.079561,62860.0,62859.0,0.3628]
[1728859520929,0.079561,62860.0,62859.0,0.3638]
[1728859522132,0.079561,62860.0,62859.0,0.49079726]
[1728859523024,0.079561,62860.0,62859.0,0.41123526]
[1728859523925,0.079561,62860.0,62859.0,0.3638]
[1728859524636,0.079561,62860.0,62859.0,0.003]
[1728859524936,0.079568,62855.0,62854.0,0.0037]
[1728859525131,0.079568,62855.0,62847.0,0.14293163]
[1728859525132,0.079576,62850.0,62847.0,0.0037]
[1728859525435,0.079578,62847.0,62846.0,0.079579]
[1728859527429,0.3608,62847.0,62841.0,0.0037]
[1728859527623,0.3608,62847.0,62840.0,0.079585]
[1728859527624,0.079585,62841.0,62840.0,0.079585]
[1728859527819,0.079585,62841.0,62840.0,0.440385]
[1728859528435,0.079585,62841.0,62840.0,0.46897756]
[1728859528831,0.080585,62841.0,62840.0,0.47097756]
[1728859529227,0.001,62841.0,62840.0,0.47097756]
[1728859529936,0.002,62841.0,62840.0,0.47097756]
[1728859530323,0.001,62841.0,62840.0,0.46897756]
[1728859530524,0.079584,62842.0,62840.0,0.47097756]
[1728859530727,0.001,62841.0,62840.0,0.47097756]
[1728859531244,0.002,62841.0,62840.0,0.46897756]
[1728859532240,0.001,62841.0,62840.0,0.46897756]
[1728859532935,0.002,62841.0,62840.0,0.46897756]
[1728859533235,0.001,62841.0,62840.0,0.46897756]
[1728859533633,0.081584,62842.0,62841.0,0.079585]
[1728859533839,0.079584,62842.0,62841.0,0.079585]
[1728859534735,0.0037,62848.0,62840.0,0.02859256]
[1728859534931,0.0037,62851.0,62850.0,0.079574]
[1728859535134,0.079573,62851.0,62850.0,0.249574]
[1728859535530,0.079573,62851.0,62850.0,0.079574]
[1728859536138,0.088573,62851.0,62850.0,0.079574]
[1728859536846,0.079573,62851.0,62850.0,0.079574]
[1728859537044,0.082573,62851.0,62850.0,0.079574]
[1728859537341,0.086573,62851.0,62850.0,0.079574]
[1728859538435,0.083573,62851.0,62850.0,0.079574]
[1728859538635,0.086573,62851.0,62850.0,0.079574]
[1728859538841,0.007,62851.0,62850.0,0.079574]
[1728859539035,0.007,62851.0,62850.0,0.10826084]
[1728859539333,0.007,62851.0,62850.0,0.17167194]
[1728859539539,0.003,62851.0,62850.0,0.17167194]
[1728859539739,0.007,62851.0,62850.0,0.17167194]
[1728859540638,0.003,62851.0,62850.0,0.17167194]
[1728859540842,0.003,62851.0,62850.0,0.17367194]
[1728859541337,0.003,62851.0,62850.0,0.17167194]
[1728859541739,0.079569,62854.0,62853.0,0.07957]
[1728859543048,0.082569,62854.0,62853.0,0.07957]
[1728859543244,0.083569,62854.0,62853.0,0.07957]
[1728859543637,0.082569,62854.0,62853.0,0.07957]
[1728859569866,0.082569,62854.0,62851.0,0.3608]
[1728859569867,0.079571,62852.0,62851.0,0.4242549]
[1728859570068,0.11,62852.0,62849.0,0.0634549]
[1728859570365,0.11,62852.0,62845.0,0.16279953]
[1728859570366,0.079579,62846.0,62845.0,0.0037]
[1728859570557,0.079581,62844.0,62843.0,0.0634549]
[1728859570966,0.079581,62844.0,62843.0,0.1430379]
[1728859571163,0.079581,62844.0,62843.0,0.079583]
[1728859571761,0.079584,62842.0,62841.0,0.09169443]
[1728859572266,0.079584,62842.0,62841.0,0.02823953]
[1728859572464,0.079584,62842.0,62840.0,0.079586]
[1728859572666,0.079584,62842.0,62840.0,0.1430409]
[1728859573069,0.001,62844.0,62840.0,0.0634549]
[1728859573270,0.001,62844.0,62843.0,0.079583]
[1728859573782,0.080581,62844.0,62843.0,0.079583]
[1728859573976,0.079581,62844.0,62843.0,0.079583]
[1728859574266,0.079581,62844.0,62843.0,0.081583]
[1728859574472,0.080581,62844.0,62843.0,0.081583]
[1728859575062,0.080581,62844.0,62843.0,0.002]
[1728859575669,0.002,62844.0,62843.0,0.251583]
[1728859577172,0.0037,62850.0,62849.0,0.079575]
[1728859577373,0.083265,62857.0,62852.0,0.07957]
[1728859577674,0.079567,62856.0,62852.0,0.07957]
[1728859578176,0.079567,62856.0,62850.0,0.0642]
[1728859578177,0.079564,62858.0,62855.0,0.249567]
[1728859578372,0.079562,62860.0,62856.0,0.079565]
[1728859579662,0.083562,62860.0,62856.0,0.079565]
[1728859580062,0.001,62857.0,62856.0,0.079565]
[1728859580662,0.079564,62858.0,62856.0,0.079565]
[1728859581070,0.009,62860.0,62855.0,0.17]
[1728859581291,0.004,62860.0,62859.0,0.079562]
[1728859581466,0.083561,62860.0,62859.0,0.249562]
[1728859581777,0.0111,62867.0,62863.0,0.079557]
[1728859581983,0.0037,62869.0,62864.0,0.079556]
[1728859582275,0.0037,62869.0,62861.0,0.3608]
[1728859582276,0.0037,62872.0,62870.0,0.249549]
[1728859582475,0.0307,62876.0,62870.0,0.17]
[1728859582669,0.079546,62872.0,62871.0,0.079546]
[1728859583275,0.079547,62871.0,62870.0,0.17]
[1728859583479,0.0307,62876.0,62868.0,0.3608]
[1728859583480,0.07955,62869.0,62868.0,0.3608]
[1728859583679,0.24955,62869.0,62868.0,0.3608]
[1728859584070,0.07955,62869.0,62868.0,0.3608]
[1728859585279,0.25855,62869.0,62868.0,0.3608]
[1728859585674,0.079551,62868.0,62867.0,0.02903256]
[1728859585977,0.079557,62864.0,62862.0,0.3608]
[1728859586181,0.079557,62864.0,62862.0,0.38973225]
[1728859586484,0.079557,62863.0,62862.0,0.38973225]
[1728859586703,0.079557,62863.0,62862.0,0.46929125]
[1728859589782,0.084557,62863.0,62862.0,0.46929125]
[1728859591187,0.005,62863.0,62862.0,0.46929125]
[1728859593689,0.005,62863.0,62862.0,1.54653125]
[1728859593990,0.0037,62872.0,62871.0,0.079547]
[1728859594185,0.083238,62879.0,62878.0,0.079538]
[1728859594393,0.079538,62879.0,62878.0,0.249538]
[1728859595087,0.079538,62879.0,62878.0,0.17]
[1728859596288,0.093538,62879.0,62878.0,0.001]
[1728859596883,0.184,62879.0,62871.0,0.3645]
[1728859597086,0.249546,62872.0,62871.0,0.3608]
[1728859597389,0.249546,62872.0,62869.0,0.07955]
[1728859597390,0.17,62872.0,62869.0,0.07955]
[1728859597587,0.079549,62870.0,62869.0,0.07955]
[1728859599395,0.087549,62870.0,62869.0,0.07955]
[1728859599783,0.096549,62870.0,62869.0,0.08055]
[1728859600886,0.017,62870.0,62869.0,0.08055]
[1728859602888,0.096549,62870.0,62869.0,0.08055]
[1728859610113,0.017,62870.0,62869.0,0.08055]
[1728859611305,0.017,62870.0,62869.0,0.25055]
[1728859612319,0.017,62870.0,62869.0,0.08055]
[1728859613721,0.096549,62870.0,62869.0,0.001]
[1728859613908,0.129649,62870.0,62869.0,0.001]
[1728859616907,0.161849,62870.0,62869.0,0.001]
[1728859619525,0.079556,62864.0,62863.0,0.0037]
[1728859619822,0.079556,62864.0,62858.0,0.079563]
[1728859619823,0.249556,62864.0,62858.0,0.079563]
[1728859620015,0.079562,62859.0,62858.0,0.079563]
[1728859620215,0.079562,62859.0,62858.0,0.10780137]
[1728859620519,0.079568,62855.0,62854.0,0.3608]
[1728859620722,0.249568,62855.0,62854.0,0.3608]
[1728859622124,0.250568,62855.0,62854.0,0.3638]
[1728859622808,0.250568,62855.0,62854.0,0.003]
[1728859623014,0.727848,62855.0,62854.0,0.003]
[1728859623416,0.728848,62855.0,62854.0,0.007]
[1728859624025,0.251568,62855.0,62854.0,0.007]
[1728859625529,0.251568,62855.0,62854.0,0.008]
[1728859630625,0.081568,62855.0,62854.0,0.008]
[1728859630829,0.251568,62855.0,62854.0,0.008]
[1728859632020,0.081568,62855.0,62854.0,0.008]
[1728859632220,0.081568,62855.0,62854.0,0.087569]
[1728859632535,0.251568,62855.0,62854.0,0.008]
[1728859635538,0.28043327,62855.0,62854.0,0.008]
[1728859635830,0.251568,62855.0,62854.0,0.008]
[1728859638224,0.081568,62855.0,62854.0,0.008]
[1728859642435,0.081568,62855.0,62854.0,0.087569]
[1728859644039,0.081568,62855.0,62854.0,0.008]
[1728859646036,0.081568,62855.0,62854.0,0.3688]
[1728859646937,0.081568,62855.0,62854.0,0.008]
[1728859647440,0.251568,62855.0,62854.0,0.008]
[1728859648229,0.251568,62855.0,62846.0,0.06356642]
[1728859648230,0.898848,62855.0,62846.0,0.04762387]
[1728859648432,0.3608,62850.0,62844.0,0.0037]
[1728859648636,0.3608,62850.0,62843.0,0.09410685]
[1728859648637,0.079581,62844.0,62843.0,0.09410685]
[1728859649442,0.079581,62844.0,62843.0,0.14173072]
[1728859649643,0.079581,62844.0,62843.0,0.11302387]
[1728859650140,0.440381,62844.0,62839.0,0.04773689]
[1728859650344,0.440381,62844.0,62837.0,0.07642941]
[1728859650345,0.3618,62844.0,62837.0,0.07642941]
[1728859650552,0.3618,62844.0,62837.0,0.02869252]
[1728859650553,0.079589,62838.0,62837.0,0.02869252]
[1728859650843,0.17,62840.0,62836.0,0.40853689]
[1728859650844,0.07959,62837.0,62836.0,0.40853689]
[1728859651534,0.07959,62837.0,62836.0,0.3608]
[1728859651742,0.07959,62837.0,62836.0,0.3895782]
[1728859651930,0.07959,62837.0,62836.0,0.43731509]
[1728859652333,0.08059,62837.0,62836.0,0.3895782]
[1728859653138,0.08059,62837.0,62836.0,0.4691702]
[1728859653342,0.08159,62837.0,62836.0,0.4691702]
[1728859656045,0.08159,62837.0,62836.0,0.53273662]